Workbook

Sheet גיליון4
C1: גודל | D1: נטית ציר הX | E1: נטית ציר הY | F1: X | G1: Y | H1: Z | I1: סטית מרכז
B2: עיגול גדול | C2: 12 | D2: 0 | E2: 10 | F2: 0 | G2: =COS(RADIANS(E2))*I$2 -> 0.984807753 | H2: =SIN(RADIANS(E2))*I$2 -> 0.1736481777 | I2: 1
B3: עיגול קטן 1 | C3: 2 | D3: 0 | E3: 0 | F3: =SQRT((C2/2)^2-G2^2) -> 5.918627686 | G3: 0 | H3: 0
B4: עיגול קטן 2 | C4: =C3 -> 2 | D4: 0 | E4: 0 | F4: =-SQRT((C2/2)^2-G2^2) -> -5.918627686 | G4: 0 | H4: 0
B5: עיגול קטן 3 | C5: =C4 -> 2 | D5: 0 | E5: -20 | F5: 0 | G5: =COS(RADIANS(E2))*(C2/2+I2) -> 6.893654271 | H5: =SIN(RADIANS(E2))*(C2/2+I2) -> 1.215537244
B6: עיגול קטן 4 | C6: =C5 -> 2 | D6: 0 | E6: =-E5 -> 20 | F6: 0 | G6: =COS(RADIANS(E2))*(-C2/2+I2) -> -4.924038765 | H6: =SIN(RADIANS(E2))*(-C2/2+I2) -> -0.8682408883

Sheet גיליון2
C1: גודל | D1: נטית ציר הX | E1: נטית ציר הY | F1: X | G1: Y | H1: Z | I1: סטית מרכז
B2: עיגול גדול | C2: =גיליון4!C2 -> 12 | D2: 0 | E2: =גיליון4!E2 -> 10 | F2: 0 | G2: =COS(RADIANS(E2))*I$2 -> 0.984807753 | H2: =SIN(RADIANS(E2))*I$2 -> 0.1736481777 | I2: 1
B3: עיגול קטן | C3: =גיליון4!C3 -> 2 | D3: 15 | E3: 0 | F3: 0 | G3: =COS(RADIANS(E2))*(C2/2+I$2) -> 6.893654271 | H3: =SIN(RADIANS(E2))*(C2/2+I$2) -> 1.215537244

Sheet גיליון3
C1: גודל | D1: נטית ציר הX | E1: נטית ציר הY | F1: X | G1: Y | H1: Z
B2: עיגול גדול | C2: =גיליון4!C2 -> 12 | D2: 0 | E2: =-גיליון2!E2 -> -10 | F2: 0 | G2: =COS(RADIANS(E2))*גיליון2!I2 -> 0.984807753 | H2: =SIN(RADIANS(E2))*גיליון2!I2 -> -0.1736481777
B3: עיגול קטן | C3: =גיליון4!C3 -> 2 | D3: =-גיליון2!D3 -> -15 | E3: 0 | F3: 0 | G3: =COS(RADIANS(E2))*(-C2/2+גיליון2!I2) -> -4.924038765 | H3: =SIN(RADIANS(E2))*(-C2/2+גיליון2!I2) -> 0.8682408883

Sheet גיליון5
C1: גודל | D1: נטית ציר הX | E1: נטית ציר הY | F1: X | G1: Y | H1: Z
B2: עיגול גדול | C2: =גיליון2!C2 -> 12 | D2: 0 | E2: 0 | F2: 0 | G2: =COS(RADIANS(E2))*גיליון2!I2 -> 1 | H2: =SIN(RADIANS(E2))*גיליון2!I2 -> 0
B3: עיגול קטן 1 | C3: =גיליון2!C3 -> 2 | D3: 25 | E3: 0 | F3: =SQRT((C2/2)^2-G2^2) -> 5.916079783 | G3: 0 | H3: 0
B4: עיגול קטן 2 | C4: =C3 -> 2 | D4: =D3 -> 25 | E4: 0 | F4: =-SQRT((C2/2)^2-G2^2) -> -5.916079783 | G4: 0 | H4: 0

Sheet גיליון6 (hidden)
C1: גודל | D1: נטית ציר הX | E1: נטית ציר הY | F1: X | G1: Y | H1: Z | I1: סטית מרכז
A2: צדק, מאדים, שבתאי | B2: עיגול גדול | C2: 12 | D2: 0 | E2: 10 | F2: 0 | G2: =COS(RADIANS(E2))*I$2 -> 0.984807753 | H2: =SIN(RADIANS(E2))*I$2 -> 0.1736481777 | I2: 1
B3: עיגול קטן 1 | C3: 2 | D3: 0 | E3: 0 | F3: =SQRT((C2/2)^2-G2^2) -> 5.918627686 | G3: 0 | H3: 0
B4: עיגול קטן 2 | C4: =C3 -> 2 | D4: 0 | E4: 0 | F4: =-SQRT((C2/2)^2-G2^2) -> -5.918627686 | G4: 0 | H4: 0
B5: עיגול קטן 3 | C5: =C4 -> 2 | D5: 0 | E5: -20 | F5: 0 | G5: =COS(RADIANS(E2))*(C2/2+I2) -> 6.893654271 | H5: =SIN(RADIANS(E2))*(C2/2+I2) -> 1.215537244
B6: עיגול קטן 4 | C6: =C5 -> 2 | D6: 0 | E6: =-E5 -> 20 | F6: 0 | G6: =COS(RADIANS(E2))*(-C2/2+I2) -> -4.924038765 | H6: =SIN(RADIANS(E2))*(-C2/2+I2) -> -0.8682408883
A8: נוגה וכוכב חמה | B8: עיגול גדול | C8: =C2 -> 12 | D8: 0 | E8: =E2 -> 10 | F8: 0 | G8: =COS(RADIANS(E8))*I$8 -> 0.984807753 | H8: =SIN(RADIANS(E8))*I$8 -> 0.1736481777 | I8: 1
B9: עיגול קטן 1 | C9: =C3 -> 2 | D9: 15 | E9: 0 | F9: 0 | G9: =COS(RADIANS(E8))*(C8/2+I$8) -> 6.893654271 | H9: =SIN(RADIANS(E8))*(C8/2+I$8) -> 1.215537244
B11: עיגול גדול | C11: =C8 -> 12 | D11: 0 | E11: =-E8 -> -10 | F11: 0 | G11: =COS(RADIANS(E11))*I$8 -> 0.984807753 | H11: =SIN(RADIANS(E11))*I$8 -> -0.1736481777
B12: עיגול קטן 2 | C12: =C9 -> 2 | D12: =D9 -> 15 | E12: 0 | F12: 0 | G12: =COS(RADIANS(E11))*(-C11/2+I$8) -> -4.924038765 | H12: =SIN(RADIANS(E11))*(-C11/2+I$8) -> 0.8682408883
B14: עיגול גדול | C14: =C8 -> 12 | D14: 0 | E14: 0 | F14: 0 | G14: =COS(RADIANS(E14))*I$8 -> 1 | H14: =SIN(RADIANS(E14))*I$8 -> 0
B15: עיגול קטן 3 | C15: =C12 -> 2 | D15: 25 | E15: 0 | F15: =SQRT((C14/2)^2-G14^2) -> 5.916079783 | G15: 0 | H15: 0
B16: עיגול קטן 4 | C16: =C12 -> 2 | D16: =D15 -> 25 | E16: 0 | F16: =-SQRT((C14/2)^2-G14^2) -> -5.916079783 | G16: 0 | H16: 0
